{"text_format":"1","workbook":"xlsx","n_sheets":1,"sheets":["見積書"],"not_rendered":{"charts":0,"images":3,"macros":1,"external_links":0,"defined_names":1,"comments":0,"pivot_tables":0},"unopened":[],"bounds":{"document_bytes":16777216,"sheet_cells":100000,"rows_first":2000,"rows_last":500,"rows_between":2000,"halvings":0,"cell_chars":16384,"cell_head_chars":4096},"cells_cut":0,"cells_raw":0,"read":"whole","date_system":"1900"}

{"sheet":"見積書","index":0,"n_rows":81,"n_cols":13,"rows_kept":81,"cut":false,"hidden":false,"merged":[[80,3,80,6],[10,1,10,2],[3,0,3,2],[8,1,8,3],[9,1,9,3],[39,3,39,6]]}
[null,null,null,null,null,null,"2020-09-26"]
[null,null,null,"御 見 積 書"]
[" "]
[null,null,null,"御中"]
[null,null,null,null,null,"〒000-1111"]
[null,null,null,null,null,"アルプス県名水市その辺1-1"]
["下記の通り御見積り申し上げます",null,null,null,null,"株式会社 グッドシステム"]
[null,null,null,null,null,"代表取締役　宇奈月タロウ",null,null,"消費税率",10,"%","振込先","越 中 銀 行　名 水 支 店　　普 通 0000001"]
["件　名",null,null,null,null,null,"tel: 0000-11-2222"]
[null,null,null,null,null,null,"fax: 0000-11-3333"]
["合計金額",{"$f":"MAX(G14:G38,G42:G79)","v":0},null,"（消費税は含んでおりません）"]
[]
[null,"工 種","・仕 様","数量","単位","単 価","金 額"]
[null,null,null,null,null,null,{"$f":"IF(OR(D14=\"\",F14=\"\"),\"\",D14*F14)","v":""}]
[null,null,null,null,null,null,{"$f":"IF(OR(D15=\"\",F15=\"\"),\"\",D15*F15)","v":""}]
[null,null,null,null,null,null,""]
[null,null,null,null,null,null,""]
[null,null,null,null,null,null,""]
[null,null,null,null,null,null,""]
[null,null,null,null,null,null,""]
[null,null,null,null,null,null,""]
[null,null,null,null,null,null,""]
[null,null,null,null,null,null,""]
[null,null,null,null,null,null,""]
[null,null,null,null,null,null,""]
[null,null,null,null,null,null,""]
[null,null,null,null,null,null,""]
[null,null,null,null,null,null,""]
[null,null,null,null,null,null,""]
[null,null,null,null,null,null,""]
[null,null,null,null,null,null,""]
[null,null,null,null,null,null,""]
[null,null,null,null,null,null,""]
[null,null,null,null,null,null,""]
[null,null,null,null,null,null,""]
[null,null,null,null,null,null,""]
[null,null,null,null,null,null,""]
[null,null,null,null,null,null,""]
[]
[null,null,null,"株 式 会 社　グ ッ ド シ ス テ ム"]
[null,"工 種","・仕 様","数量","単位","単 価","金 額"]
[null,null,null,null,null,null,{"$f":"IF(OR(D42=\"\",F42=\"\"),\"\",D42*F42)","v":""}]
[null,null,null,null,null,null,{"$f":"IF(OR(D43=\"\",F43=\"\"),\"\",D43*F43)","v":""}]
[null,null,null,null,null,null,""]
[null,null,null,null,null,null,""]
[null,null,null,null,null,null,""]
[null,null,null,null,null,null,""]
[null,null,null,null,null,null,""]
[null,null,null,null,null,null,""]
[null,null,null,null,null,null,""]
[null,null,null,null,null,null,""]
[null,null,null,null,null,null,""]
[null,null,null,null,null,null,""]
[null,null,null,null,null,null,""]
[null,null,null,null,null,null,""]
[null,null,null,null,null,null,""]
[null,null,null,null,null,null,""]
[null,null,null,null,null,null,""]
[null,null,null,null,null,null,""]
[null,null,null,null,null,null,""]
[null,null,null,null,null,null,""]
[null,null,null,null,null,null,""]
[null,null,null,null,null,null,""]
[null,null,null,null,null,null,""]
[null,null,null,null,null,null,""]
[null,null,null,null,null,null,""]
[null,null,null,null,null,null,""]
[null,null,null,null,null,null,""]
[null,null,null,null,null,null,""]
[null,null,null,null,null,null,""]
[null,null,null,null,null,null,""]
[null,null,null,null,null,null,""]
[null,null,null,null,null,null,""]
[null,null,null,null,null,null,""]
[null,null,null,null,null,null,""]
[null,null,null,null,null,null,""]
[null,null,null,null,null,null,""]
[null,null,null,null,null,null,""]
[null,null,null,null,null,null,""]
[]
[null,null,null,"株 式 会 社　グ ッ ド シ ス テ ム"]